bitfinex-derivatives/quotes_ETHF0:USTF0_20240925
["timestamp","ask_amount","ask_price","bid_price","bid_amount"]
[1727277783263,0.38078,2626.3,2626.2,3.58859]
[1727277783464,0.75527,2626.4,2626.3,0.38078]
[1727277784564,3.2078,2626.6,2626.5,0.38075]
[1727277785271,0.38072,2626.8,2626.6,0.38073]
[1727277785468,0.7647,2626.9,2626.6,2.68]
[1727277785667,0.3963,2626.9,2626.8,3.06071]
[1727277785969,12.01132628,2627.5,2627.0,0.38066]
[1727277786178,0.38063,2627.3,2627.0,3.06066]
[1727277786371,0.3963,2627.4,2627.2,2.68]
[1727277786566,0.3684,2627.5,2627.3,0.38063]
[1727277786872,0.3684,2627.5,2627.4,2.68]
[1727277787074,6.5642,2628.0,2627.4,6.4864]
[1727277787275,0.3684,2628.0,2627.9,2.68]
[1727277787567,0.74894,2628.0,2627.5,4.4521826]
[1727277787762,0.3684,2628.0,2627.5,3.4549]
[1727277787959,0.38055,2627.9,2627.5,1.3915826]
[1727277788166,3.5762,2628.0,2627.5,0.3943]
[1727277788365,3.95674,2628.0,2627.5,0.3943]
[1727277788563,0.38055,2627.9,2627.5,0.3943]
[1727277789373,3.5762,2628.0,2627.5,0.3943]
[1727277789784,3.95674,2628.0,2627.5,0.7749]
[1727277789961,0.38055,2627.9,2627.5,0.7749]
[1727277790276,3.5762,2628.0,2627.5,0.3943]
[1727277790462,0.38057,2627.8,2627.4,0.75331]
[1727277790868,0.38057,2627.8,2627.4,0.38061]
[1727277791377,0.38057,2627.8,2627.5,0.3806]
[1727277791763,0.38057,2627.8,2627.4,8.47802444]
[1727277792264,0.38059,2627.7,2627.4,0.38061]
[1727277792471,0.38062,2627.4,2627.3,3.2078]
[1727277793063,4.18702,2627.4,2627.3,3.2078]
[1727277794578,0.76021,2627.5,2627.3,3.2078]
[1727277794878,0.76021,2627.5,2626.9,3.0682]
[1727277794879,0.38064,2627.3,2626.9,3.0682]
[1727277795269,3.5874,2627.5,2627.0,8.35239385]
[1727277795579,0.38066,2627.2,2627.0,7.97172385]
[1727277795877,0.3663,2627.1,2627.0,8.35239385]
[1727277796269,0.3663,2627.1,2626.9,0.38068]
[1727277796270,0.74696,2627.1,2626.9,0.38068]
[1727277796466,0.3897,2627.0,2626.9,0.38068]
[1727277797182,0.38063,2627.3,2627.1,0.38066]
[1727277797381,1.15383,2627.4,2627.2,0.38064]
[1727277797572,1.15383,2627.4,2627.3,0.38063]
[1727277797573,0.7732,2627.4,2627.3,0.38063]
[1727277797881,0.3892,2627.4,2627.2,3.06064]
[1727277798077,0.384,2627.7,2627.2,2.68]
[1727277798376,0.38059,2627.6,2627.3,0.3755]
[1727277798883,0.3806,2627.6,2627.3,0.75612]
[1727277799266,0.7732,2627.7,2627.3,0.3755]
[1727277799574,1.15379,2627.7,2627.5,0.3806]
[1727277799868,1.15379,2627.7,2627.4,0.38061]
[1727277800068,0.3892,2627.7,2627.3,0.3755]
[1727277800274,0.3892,2627.7,2627.4,2.68]
[1727277800473,0.3892,2627.7,2627.5,0.3806]
[1727277800678,0.3892,2627.7,2627.6,0.38059]
[1727277800875,0.4003,2628.0,2627.8,0.38056]
[1727277801085,0.4003,2628.0,2627.7,0.38057]
[1727277801380,0.7809,2628.0,2627.5,0.3806]
[1727277801588,0.7809,2628.0,2627.4,2.68]
[1727277801589,0.38057,2627.8,2627.4,2.68]
[1727277801774,0.38057,2627.8,2627.6,0.38059]
[1727277802274,1.73225,2628.0,2627.6,0.38059]
[1727277802468,1.73225,2628.0,2627.4,2.68]
[1727277802772,0.38055,2627.9,2627.7,0.38056]
[1727277802973,1.16144,2628.0,2627.8,0.38056]
[1727277803281,0.3806,2628.0,2627.4,5.8878]
[1727277803478,0.3806,2628.0,2627.9,3.06055]
[1727277803777,0.3806,2628.0,2627.9,2.68]
[1727277804174,3.2078,2628.1,2627.9,2.68]
[1727277804374,3.2078,2628.1,2628.0,0.38053]
[1727277805681,3.2078,2628.1,2627.9,3.06054]
[1727277805888,3.2078,2628.1,2628.0,0.38053]
[1727277806479,3.2078,2628.1,2627.9,3.06054]
[1727277806679,0.77351,2628.2,2628.0,0.38053]
[1727277806680,0.393,2628.2,2628.0,0.38053]
[1727277806875,0.393,2628.2,2627.9,2.68]
[1727277807077,0.393,2628.2,2627.9,3.06054]
[1727277807380,0.38052,2628.1,2627.8,0.76145]
[1727277807576,0.77351,2628.2,2627.8,0.3809]
[1727277807880,0.77351,2628.2,2627.9,0.38055]
[1727277808074,0.393,2628.2,2627.9,0.38055]
[1727277808275,0.38053,2628.1,2627.8,0.76145]
[1727277808475,0.38053,2628.1,2627.9,0.38054]
[1727277808672,0.38053,2628.1,2627.8,0.76145]
[1727277808878,0.38053,2628.1,2627.9,0.38055]
[1727277809066,0.38053,2628.1,2627.8,0.76145]
[1727277809265,0.77351,2628.2,2627.9,0.38054]
[1727277809470,0.38052,2628.1,2627.9,0.38054]
[1727277809679,0.38052,2628.1,2627.8,0.3809]
[1727277809869,0.393,2628.2,2627.8,0.76145]
[1727277809870,0.38054,2628.0,2627.8,0.76145]
[1727277810071,0.393,2628.2,2628.0,0.38053]
[1727277810271,0.77351,2628.2,2627.9,0.38053]
[1727277810475,0.393,2628.2,2627.9,0.38054]
[1727277810872,0.38052,2628.1,2627.9,0.38054]
[1727277811082,0.393,2628.2,2627.8,0.38056]
[1727277811390,0.3751,2628.0,2627.5,1.35]
[1727277811675,0.3751,2628.0,2627.8,0.38055]
[1727277811876,0.75564,2628.0,2627.8,0.38055]
[1727277812578,0.3751,2628.0,2627.5,0.3985]
[1727277812879,0.3751,2628.0,2627.8,0.38055]
[1727277813080,0.3751,2628.0,2627.6,8.0181189]
[1727277813284,0.3751,2628.0,2627.9,0.38055]
[1727277813588,0.393,2628.2,2627.9,0.38054]
[1727277813885,0.77352,2628.2,2627.9,0.38054]
[1727277814186,0.77351,2628.2,2627.9,0.38054]
[1727277814384,0.77351,2628.2,2628.0,0.38053]
[1727277814576,0.393,2628.2,2628.0,0.38053]
[1727277814982,0.7735,2628.2,2628.0,0.38053]
[1727277815184,0.393,2628.2,2627.9,2.68]
[1727277815380,0.393,2628.2,2628.1,0.38052]
[1727277816087,0.393,2628.2,2628.0,0.3731]
[1727277816278,0.393,2628.2,2628.1,0.38052]
[1727277816976,3.5759,2628.3,2628.2,0.3805]
[1727277817290,3.2078,2628.3,2628.2,0.3805]
[1727277817490,0.38048,2628.4,2628.2,0.3805]
[1727277818579,0.3652,2628.5,2628.4,0.38047]
[1727277823196,0.74566,2628.5,2628.4,0.38047]
[1727277823599,0.3652,2628.5,2628.4,0.38047]
[1727277824496,3.2078,2628.7,2628.5,0.38045]
[1727277824690,0.38045,2628.6,2628.5,0.38045]
[1727277824888,3.592,2628.7,2628.5,0.38045]
[1727277825394,3.592,2628.7,2628.6,0.38044]
[1727277825698,3.592,2628.7,2628.6,3.06044]
[1727277825884,3.2078,2628.7,2628.6,3.06044]
[1727277826489,3.592,2629.0,2628.7,0.38042]
[1727277826785,0.38042,2628.8,2628.7,0.38043]
[1727277826989,0.38042,2628.8,2628.7,0.38042]
[1727277827295,0.38041,2628.9,2628.8,0.38041]
[1727277827698,4.18441,2628.9,2628.8,0.38041]
[1727277827902,0.38043,2628.8,2628.7,0.38042]
[1727277828293,0.38047,2628.5,2628.4,0.38046]
[1727277829297,0.3805,2628.2,2628.1,0.38051]
[1727277829502,0.3805,2628.2,2627.8,1.7771226]
[1727277829503,0.38055,2627.9,2627.8,1.7771226]
[1727277829803,0.38054,2628.0,2627.9,0.38053]
[1727277830296,1.127,2628.1,2627.9,0.38053]
[1727277830494,1.50752,2628.1,2628.0,0.38053]
[1727277832097,1.127,2628.1,2628.0,0.38053]
[1727277832599,3.58831,2628.2,2628.0,0.38053]
[1727277832600,3.2078,2628.2,2628.1,0.38052]
[1727277832991,0.38049,2628.3,2628.2,0.3805]
[1727277833191,0.38049,2628.3,2628.1,0.38051]
[1727277833192,0.3805,2628.3,2628.1,0.38051]
[1727277833401,0.3805,2628.3,2628.2,0.3805]
[1727277834891,1.3313,2628.4,2628.0,2.68]
[1727277835103,0.3805,2628.3,2628.2,0.3805]
[1727277835293,0.38051,2628.2,2628.1,0.38051]
[1727277836504,0.38052,2628.1,2628.0,2.68]
[1727277836697,0.3805,2628.2,2628.1,0.38051]
[1727277837502,0.3805,2628.3,2628.2,0.38049]
[1727277837698,0.38052,2628.2,2628.1,0.38051]
[1727277838200,0.38051,2628.2,2628.1,0.3805]
[1727277838406,0.3805,2628.3,2628.2,0.3805]
[1727277839409,0.38052,2628.2,2628.1,0.38051]
[1727277839811,0.38052,2628.1,2628.0,0.38052]
[1727277841114,0.38052,2628.2,2628.1,0.38052]
[1727277841611,1.3313,2628.4,2628.2,0.38049]
[1727277841612,0.3805,2628.3,2628.2,0.38049]
[1727277842207,1.3313,2628.4,2628.1,2.68]
[1727277842208,0.76059,2628.4,2628.3,0.38049]
[1727277842802,0.38049,2628.3,2628.2,0.75279]
[1727277843006,0.76058,2628.4,2628.3,0.38049]
[1727277843213,0.38049,2628.3,2628.2,0.7528]
[1727277843407,0.76058,2628.4,2628.3,0.38049]
[1727277843610,0.76058,2628.4,2628.2,1.7500826]
[1727277843611,0.38049,2628.3,2628.2,1.7500826]
[1727277843806,0.38049,2628.3,2628.2,0.3805]
[1727277844003,0.3805,2628.2,2628.1,4.0577926]
[1727277844210,0.3805,2628.2,2628.1,0.9972826]
[1727277844413,0.3801,2628.4,2628.0,0.9972826]
[1727277844414,1.33182,2628.1,2628.0,0.9972826]
[1727277844619,0.38053,2628.0,2627.7,4.2050826]
[1727277844807,1.54483,2628.0,2627.9,0.38055]
[1727277845114,0.38055,2627.9,2627.8,1.3778326]
[1727277845315,1.54484,2628.0,2627.9,0.38055]
[1727277845515,3.2078,2628.2,2627.9,5.907428]
[1727277845808,3.2078,2628.2,2628.1,0.38052]
[1727277845809,3.5883,2628.2,2628.1,0.38052]
[1727277846009,3.5883,2628.2,2628.1,1.37715134]
[1727277847006,3.5883,2628.2,2628.1,2.65603254]
[1727277847204,3.5883,2628.2,2628.1,0.99663134]
[1727277847410,3.5883,2628.2,2628.1,1.37715134]
[1727277847411,3.2078,2628.2,2628.1,1.37715134]
[1727277848607,3.5883,2628.2,2628.1,1.37715134]
[1727277848807,0.3805,2628.2,2628.1,1.37715134]
[1727277849012,0.7827,2628.3,2628.2,0.3805]
[1727277849316,0.7827,2628.3,2628.2,1.37713134]
[1727277849521,0.3805,2628.2,2628.1,1.37714134]
[1727277849816,0.3805,2628.2,2628.1,2.65651176]
[1727277850005,0.3805,2628.2,2628.1,2.27652577]
[1727277850212,1.33176,2628.2,2628.1,2.77584582]
[1727277850405,4.53956,2628.2,2628.1,0.99712034]
[1727277850608,3.5883,2628.2,2628.1,2.65702629]
[1727277850803,3.5883,2628.2,2628.1,0.99712034]
[1727277851615,4.53956,2628.2,2628.1,0.99712034]
[1727277851821,1.33182,2628.1,2628.0,0.99712034]
[1727277852117,0.38053,2628.0,2627.9,1.37766034]
[1727277852715,0.38053,2628.0,2627.9,0.38054]
[1727277853117,0.38055,2627.9,2627.8,0.38055]
[1727277853326,0.75545,2627.9,2627.8,1.37780059]
[1727277853521,1.70682,2627.9,2627.8,0.99725059]
[1727277855421,1.70682,2627.9,2627.8,1.37781059]
[1727277856523,1.70682,2627.9,2627.8,0.99725059]
[1727277856711,1.33197,2627.8,2627.7,0.99725059]
[1727277856915,0.95148,2627.6,2627.4,1.37787059]
[1727277857119,1.33207,2627.6,2627.5,0.3806]
[1727277857514,0.3806,2627.5,2627.4,1.37786059]
[1727277857814,0.38063,2627.3,2627.2,1.37762713]
[1727277858129,0.38063,2627.3,2627.2,1.37757451]
[1727277858319,0.38065,2627.2,2627.1,0.99693451]
[1727277858517,0.7666,2627.3,2626.9,0.99693451]
[1727277858720,0.7666,2627.3,2627.2,0.38065]
[1727277858721,1.14724,2627.3,2627.2,0.38065]
[1727277859325,0.38065,2627.2,2627.1,0.99693451]
[1727277859533,0.38066,2627.1,2627.0,1.37760451]
[1727277859719,0.38066,2627.1,2627.0,0.99693451]
[1727277860232,0.38066,2627.1,2627.0,0.38067]
[1727277860423,0.38068,2627.0,2626.9,1.37761451]
[1727277860730,0.7666,2627.3,2626.9,1.37761451]
[1727277860731,0.38067,2627.1,2626.9,1.37761451]
[1727277861034,3.58845,2627.2,2626.9,0.99693451]
[1727277861330,0.38066,2627.1,2627.0,3.06068]
[1727277861531,0.38066,2627.2,2627.0,3.06067]
[1727277862126,0.7666,2627.3,2627.0,3.06067]
[1727277862429,0.38066,2627.1,2627.0,2.68]
[1727277863630,0.38068,2627.0,2626.9,0.38069]
[1727277863926,0.38069,2626.9,2626.7,1.78103451]
[1727277864127,0.38072,2626.8,2626.6,2.68]
[1727277864320,0.74812,2626.8,2626.7,0.38072]
[1727277864717,0.38072,2626.7,2626.6,0.38073]
[1727277864929,0.38075,2626.6,2626.4,1.38803451]
[1727277865128,0.38075,2626.6,2626.5,0.38075]
[1727277865321,0.77613,2626.7,2626.6,0.38073]
[1727277865722,0.38073,2626.6,2626.5,8.33184834]
[1727277866120,0.38073,2626.6,2626.5,0.38074]
[1727277866932,0.77613,2626.7,2626.4,0.3911]
[1727277867137,0.38074,2626.6,2626.5,0.38074]
[1727277867928,0.38075,2626.5,2626.4,0.38075]
[1727277868322,0.38074,2626.6,2626.4,0.38075]
[1727277868725,0.38075,2626.5,2626.4,0.38075]
[1727277868925,0.77304,2626.6,2626.5,0.38075]
[1727277869126,0.38075,2626.5,2626.4,0.38076]
[1727277869330,0.95192,2626.4,2626.0,0.99693451]
[1727277869536,0.3942,2626.3,2626.0,1.37774451]
[1727277869727,0.7502,2626.2,2626.1,0.38081]
[1727277869928,1.1214,2626.2,2626.1,0.38081]
[1727277870229,1.1214,2626.2,2626.0,0.38081]
[1727277870532,0.7406,2626.2,2625.9,1.16423]
[1727277870727,0.38081,2626.1,2625.9,1.16423]
[1727277871334,4.3292,2626.2,2626.0,0.38082]
[1727277871540,4.3292,2626.2,2625.9,1.16423]
[1727277871541,4.32921,2626.2,2625.9,1.16423]
[1727277871734,1.1214,2626.2,2625.9,1.16422]
[1727277872035,1.1214,2626.2,2626.0,0.38082]
[1727277872232,0.7406,2626.2,2625.9,0.7834]
[1727277872536,0.3942,2626.3,2625.9,3.4634]
[1727277872740,0.3942,2626.3,2626.1,0.3808]
[1727277873034,0.3942,2626.3,2625.9,3.4634]
[1727277873334,3.2078,2626.5,2626.2,4.0866482]
[1727277873632,3.2078,2626.5,2626.3,3.4292]
[1727277873836,3.2078,2626.5,2626.3,1.12997]
[1727277874428,3.2078,2626.5,2626.3,0.76327]
[1727277874629,3.2078,2626.5,2626.4,0.38076]
[1727277874827,3.2078,2626.5,2626.3,0.76327]
[1727277875236,3.2078,2626.5,2626.4,0.38076]
[1727277876830,3.2078,2626.5,2626.3,0.3825]
[1727277877033,0.3925,2626.4,2626.3,0.38078]
[1727277877338,0.3925,2626.4,2626.1,0.374]
[1727277877643,0.3925,2626.4,2626.3,0.38078]
[1727277883641,3.5988,2626.8,2626.5,0.38074]
[1727277883849,3.5988,2626.8,2626.4,0.4044]
[1727277884148,0.38073,2626.7,2626.5,0.38074]
[1727277884743,0.38072,2626.7,2626.5,0.38074]
[1727277884938,3.9672,2626.8,2626.5,0.38074]
[1727277885137,0.38073,2626.7,2626.5,0.38074]
[1727277885937,0.38073,2626.6,2626.4,0.78515]
[1727277886442,0.38073,2626.6,2626.4,0.38076]
[1727277886642,0.38073,2626.6,2626.5,0.38075]
[1727277886842,0.38073,2626.6,2626.4,0.38075]
[1727277887050,3.9672,2626.8,2626.5,0.38074]
[1727277887339,0.38074,2626.6,2626.4,0.38075]
[1727277887544,0.38074,2626.6,2626.5,0.38075]
[1727277887743,0.38074,2626.6,2626.2,12.117476]
[1727277887942,0.38073,2626.7,2626.5,0.38074]
[1727277888339,4.91898,2626.8,2626.5,0.38074]
[1727277888340,0.38073,2626.6,2626.5,0.38074]
[1727277889147,0.38075,2626.5,2626.4,0.38076]
[1727277889347,0.38075,2626.5,2626.2,12.117476]
[1727277889548,0.3804,2626.4,2626.3,0.38078]
[1727277891835,0.38078,2626.3,2626.2,8.0048561]
[1727277892037,0.741,2626.3,2626.2,8.0048561]
[1727277892248,1.12178,2626.3,2626.2,8.3856461]
[1727277892439,1.12178,2626.3,2626.2,8.0048561]
[1727277892850,0.741,2626.3,2626.2,8.3856461]
[1727277893039,1.12178,2626.3,2626.2,8.0048561]
[1727277893341,0.38079,2626.2,2626.1,0.7651]
[1727277893549,0.741,2626.3,2624.8,6.71041072]
[1727277893550,1.69296,2626.3,2625.6,0.99693451]
[1727277893742,0.38083,2626.0,2625.8,0.38084]
[1727277893933,0.38084,2625.9,2625.8,7.87755981]
[1727277894138,0.38084,2625.9,2625.7,11.88060327]
[1727277894139,0.74674,2625.9,2625.7,11.88060327]
[1727277894341,0.3659,2625.9,2625.6,0.7768]
[1727277894543,0.3659,2625.9,2625.8,0.38085]
[1727277894744,3.58861,2626.2,2625.7,15.71046676]
[1727277894745,3.2078,2626.2,2625.7,15.71046676]
[1727277894950,3.6098,2626.2,2625.7,15.71046676]
[1727277895147,0.402,2626.2,2626.1,0.38081]
[1727277896349,0.7828,2626.2,2626.0,0.38081]
[1727277896544,3.6098,2626.2,2625.6,0.7768]
[1727277896743,0.38083,2626.0,2625.8,0.38084]
[1727277898352,0.38085,2625.8,2625.6,0.38088]
[1727277898556,3.2078,2625.9,2625.5,0.38088]
[1727277898557,1.53137,2625.7,2625.5,0.38088]
[1727277898748,1.1505,2625.7,2625.6,0.38088]
[1727277899141,1.1505,2625.7,2625.4,12.25003035]
[1727277899142,1.1505,2625.7,2625.5,0.38089]
[1727277899344,1.53138,2625.7,2625.5,0.38089]
[1727277899847,1.53138,2625.7,2625.6,0.38088]
[1727277900050,1.53138,2625.7,2625.5,0.38088]
[1727277900252,0.38089,2625.5,2625.3,0.7466]
[1727277900551,3.58869,2625.6,2625.4,0.3809]
[1727277900946,0.3809,2625.5,2625.3,0.38092]
[1727277901249,0.3809,2625.5,2625.2,3.98973]
[1727277901647,0.3809,2625.5,2625.2,3.58873]
[1727277901849,3.2078,2625.6,2625.3,0.38092]
[1727277901850,3.58869,2625.6,2625.3,0.38092]
[1727277902149,0.3809,2625.5,2625.2,3.58873]
[1727277902356,3.58869,2625.6,2625.4,0.38091]
[1727277902542,3.2078,2625.6,2625.2,3.2078]
[1727277902747,0.3809,2625.5,2625.2,3.2078]
[1727277902943,0.3809,2625.5,2625.3,0.38092]
[1727277903143,0.95223,2625.6,2625.2,3.2078]
[1727277903346,0.95223,2625.6,2625.1,0.38094]
[1727277903347,0.38091,2625.4,2625.1,0.38094]
[1727277903552,3.63226,2625.5,2624.9,1.39793451]
[1727277903745,3.0507,2625.3,2625.0,0.38096]
[1727277903946,0.38097,2625.0,2624.8,1.37792451]
[1727277904158,2.68,2625.1,2624.7,1.89659071]
[1727277904159,0.3707,2624.9,2624.7,0.381]
[1727277904344,0.75169,2624.9,2624.6,0.99693451]
[1727277904551,0.38102,2624.7,2624.4,0.38105]
[1727277904748,1.15833,2624.6,2624.3,0.38106]
[1727277905253,1.15833,2624.6,2624.2,0.38108]
[1727277905254,3.06105,2624.5,2624.2,0.38108]
[1727277905451,2.68,2624.5,2624.0,3.80936394]
[1727277905651,2.68,2624.5,2624.2,0.38108]
[1727277905652,0.3707,2624.4,2624.2,0.38108]
[1727277905860,0.75175,2624.4,2624.1,8.38833326]
[1727277906360,0.3707,2624.4,2624.1,8.38833326]
[1727277906658,0.3707,2624.4,2624.1,8.00724326]
[1727277906860,0.75175,2624.4,2624.1,8.38833326]
[1727277907155,0.3707,2624.4,2624.1,8.00724326]
[1727277907547,0.3707,2624.4,2624.2,0.38108]
[1727277908152,0.3707,2624.4,2624.1,8.00724326]
[1727277908355,1.15833,2624.6,2624.1,8.00724326]
[1727277908356,0.7773,2624.6,2624.1,8.00724326]
[1727277908555,0.7773,2624.6,2624.4,0.38105]
[1727277909455,0.7773,2624.6,2624.1,8.00724326]
[1727277909658,0.3841,2624.6,2624.4,0.38104]
[1727277909852,0.3841,2624.6,2624.3,0.38106]
[1727277910645,0.3841,2624.6,2624.1,8.00724326]
[1727277910954,0.3841,2624.6,2624.4,0.38105]
[1727277911149,0.3841,2624.6,2624.3,0.38106]
[1727277911345,0.3841,2624.6,2624.4,0.38105]
[1727277911864,0.76512,2624.6,2624.3,0.38106]
[1727277912059,0.3841,2624.6,2624.4,0.38105]
[1727277912556,0.76513,2624.6,2624.3,0.38106]
[1727277912752,0.38104,2624.5,2624.2,0.38107]
[1727277912954,0.38105,2624.4,2624.2,0.38107]
[1727277913152,0.38109,2624.2,2623.9,0.38112]
[1727277913355,0.3837,2624.1,2623.9,0.38112]
[1727277913660,0.3837,2624.1,2624.0,0.38111]
[1727277913857,0.3752,2624.4,2624.3,0.38107]
[1727277914748,3.58883,2624.6,2624.5,0.38104]
[1727277914749,3.2078,2624.6,2624.5,0.38104]
[1727277914951,0.3752,2624.9,2624.8,0.381]
[1727277915558,0.3752,2624.9,2624.7,0.38101]
[1727277915763,0.75619,2624.9,2624.6,1.17112]
[1727277916258,0.75619,2624.9,2624.0,6.13059239]
[1727277916259,2.68,2624.7,2624.0,6.13059239]
[1727277916570,0.38106,2624.4,2624.1,8.16088159]
[1727277916748,2.68,2624.5,2624.1,8.16088159]
[1727277916953,0.3959,2624.3,2624.2,0.38108]
[1727277917956,0.3843,2624.4,2624.3,0.38107]
[1727277918261,3.06102,2624.7,2624.4,0.38104]
[1727277918457,0.7802,2624.8,2624.2,3.6327]
[1727277918650,1.1612,2624.8,2624.2,3.6327]
[1727277918849,0.7802,2624.8,2624.6,0.38102]
[1727277919253,0.7802,2624.8,2624.3,0.95266]
[1727277919451,0.7802,2624.8,2624.6,0.38102]
[1727277919963,0.3959,2624.8,2624.6,0.38102]
[1727277920559,0.7769,2624.8,2624.6,0.38102]
[1727277920764,0.3959,2624.8,2624.7,0.38101]
[1727277920967,3.06095,2625.2,2624.5,1.32869]
[1727277921261,3.06098,2625.0,2624.7,0.381]
[1727277921860,3.06098,2625.0,2624.8,0.381]
[1727277922559,0.3727,2625.1,2624.8,0.38098]
[1727277922560,0.75366,2625.1,2624.8,0.38098]
[1727277923556,0.3727,2625.1,2624.5,1.3287]
[1727277923862,0.75366,2625.1,2624.8,0.38099]
[1727277924163,0.75366,2625.1,2624.9,0.38098]
[1727277924459,0.38097,2625.0,2624.8,0.38099]
[1727277925459,0.38097,2625.0,2624.7,0.38101]
[1727277925658,3.06097,2625.0,2624.5,0.3761]
[1727277925961,3.06097,2625.0,2624.8,0.38099]
[1727277926459,3.06097,2625.0,2624.5,0.3761]
[1727277926460,0.38099,2624.9,2624.5,0.3761]
[1727277926664,2.68,2625.0,2624.6,0.38101]
[1727277926855,2.68,2625.0,2624.7,0.381]
[1727277927161,0.38099,2624.9,2624.7,0.381]
[1727277927360,0.381,2624.8,2624.6,0.38102]
[1727277927554,0.4016,2624.7,2624.6,0.38102]
[1727277928056,0.799,2624.7,2624.6,0.38102]
[1727277932863,5.8878,2625.0,2624.6,0.95255]
[1727277933057,3.6026,2625.0,2624.9,0.38098]
[1727277933361,0.3741,2625.1,2625.0,0.38097]
[1727277934362,0.75506,2625.1,2624.9,0.75598]
[1727277934565,3.06097,2625.0,2624.6,0.95256]
[1727277934856,3.06097,2625.0,2624.8,0.38099]
[1727277934857,0.4027,2624.9,2624.8,0.38099]
[1727277935058,3.43797,2625.0,2624.9,0.38098]
[1727277935059,3.057,2625.0,2624.9,0.38098]
[1727277935260,0.377,2625.0,2624.9,0.38098]
[1727277937165,0.38098,2624.9,2624.5,0.3761]
[1727277937360,3.057,2625.0,2624.7,0.38101]
[1727277937557,2.68,2624.8,2624.6,7.94946206]
[1727277937764,0.38101,2624.7,2624.6,0.38102]
[1727277937963,3.06101,2624.8,2624.6,0.38102]
[1727277938165,0.38099,2624.9,2624.7,0.38101]
[1727277938366,0.7798,2625.0,2624.8,0.38099]
[1727277938562,0.38098,2624.9,2624.8,0.38099]
[1727277938862,0.38098,2624.9,2624.4,1.73204]
[1727277938863,0.38098,2624.9,2624.7,0.381]
[1727277939054,0.381,2624.8,2624.7,0.381]
[1727277939362,1.73223,2625.0,2624.5,0.9526]
[1727277939363,0.38099,2624.9,2624.5,0.9526]
[1727277939562,0.38099,2624.9,2624.8,0.381]
[1727277940270,1.16078,2625.0,2624.9,0.38098]
[1727277940564,0.38098,2624.9,2624.8,0.38099]
[1727277940869,0.38099,2624.9,2624.8,0.381]
[1727277941757,0.381,2624.8,2624.7,0.381]
[1727277941954,0.7798,2625.0,2624.6,0.38102]
[1727277941955,0.38102,2624.7,2624.6,0.38102]
[1727277942155,0.38104,2624.5,2624.4,0.99693451]
[1727277942362,0.38106,2624.4,2624.1,0.99693451]
[1727277942562,0.75876,2624.4,2624.3,0.38107]
[1727277942770,0.38107,2624.3,2624.0,1.75603451]
[1727277942964,2.68,2624.2,2624.1,8.18459436]
[1727277943163,3.0616,2624.2,2623.9,0.99693451]
[1727277943372,2.68,2624.0,2623.9,0.38113]
[1727277944163,2.68,2624.0,2623.8,0.38113]
[1727277944364,0.76111,2624.1,2623.9,0.38113]
[1727277944365,3.06,2624.1,2623.9,0.38113]
[1727277944570,3.06,2624.1,2623.7,1.9480773]
[1727277944571,3.44111,2624.1,2623.7,1.9480773]
[1727277944959,3.06,2624.1,2623.9,0.38112]
[1727277945161,3.4411,2624.1,2623.8,1.37806451]
[1727277945372,3.06,2624.1,2623.8,0.38113]
[1727277945564,3.44111,2624.1,2623.8,0.38113]
[1727277946163,3.06,2624.1,2623.8,0.38113]
[1727277946363,2.68,2623.9,2623.7,2.3292273]
[1727277946674,3.06113,2623.9,2623.7,0.95114279]
[1727277946972,1.17114,2623.8,2623.7,0.95114279]
[1727277947278,0.79,2623.8,2623.7,0.95114279]
[1727277947579,0.79,2623.8,2623.7,1.33230279]
[1727277948077,3.06,2624.1,2623.9,0.38112]
[1727277948276,5.8878,2624.5,2623.8,1.94977451]
[1727277948477,5.8878,2624.5,2624.1,0.3811]
[1727277948478,0.38107,2624.3,2624.1,0.3811]
[1727277948665,0.7762,2624.4,2624.2,0.38108]
[1727277948864,0.7762,2624.4,2624.1,0.38109]
[1727277948865,1.15727,2624.4,2624.1,0.38109]
[1727277949273,0.38107,2624.3,2624.0,0.3811]
[1727277949474,3.06107,2624.3,2624.0,0.3811]
[1727277949675,3.06107,2624.3,2624.1,0.3811]
[1727277950172,0.38108,2624.2,2624.0,0.3811]
[1727277950574,3.06108,2624.3,2624.1,0.3811]
[1727277950976,0.38109,2624.2,2624.0,0.38111]
[1727277951778,2.68,2624.3,2623.9,0.38111]
[1727277951972,2.68,2624.3,2623.6,2.84081071]
[1727277951973,0.3811,2624.1,2623.7,0.99693451]
[1727277952174,0.38,2624.0,2623.7,0.99693451]
[1727277952479,0.38,2624.0,2623.9,0.38113]
[1727277953278,3.2078,2624.2,2624.1,0.3811]
[1727277953879,3.06,2624.3,2624.1,0.38109]
[1727277954678,3.44107,2624.3,2623.9,0.99693451]
[1727277954875,3.06,2624.3,2624.1,0.38109]
[1727277955080,3.06,2624.3,2624.2,0.38108]
[1727277956883,0.38,2624.3,2624.2,0.38108]
[1727277957187,0.38,2624.3,2623.9,0.99693451]
[1727277957388,0.38,2624.3,2624.0,0.38111]
[1727277957389,6.2678,2624.3,2624.0,0.38111]
[1727277957687,6.64888,2624.3,2624.0,0.38111]
[1727277958485,3.96888,2624.3,2624.0,0.38111]
[1727277958788,6.64888,2624.3,2624.0,0.38111]
[1727277959286,6.64888,2624.3,2623.8,1.36813451]
[1727277959490,6.64888,2624.3,2624.0,0.3811]
[1727277960187,6.2678,2624.3,2624.0,0.3811]
[1727277960389,6.64888,2624.3,2624.1,0.38109]